fUST/lending_fUST_20240222
["ID","MTS","AMOUNT","RATE_DAILY","PERIOD"]
[314836354,1708582246693,-500.0,0.00019452,2]
[314836355,1708582246701,-1686.18,0.00019452,2]
[314836356,1708582246710,-293.00370746,0.00019452,2]
[314836357,1708582246719,-352.51950847,0.00019452,2]
[314836358,1708582246728,-500.0,0.00019452,2]
[314836359,1708582246738,-500.0,0.00019452,2]
[314836360,1708582246747,-500.0,0.00019452,2]
[314836361,1708582246756,-500.0,0.00019452,2]
[314836362,1708582246765,-500.0,0.00019452,2]
[314836363,1708582246775,-501.01262498,0.00019452,2]
[314836364,1708582246785,-2359.07,0.00019452,2]
[314836365,1708582246794,-500.0,0.00019452,2]
[314836366,1708582246803,-500.0,0.00019452,2]
[314836367,1708582246811,-500.0,0.00019452,2]
[314836368,1708582246821,-500.0,0.00019452,2]
[314836369,1708582246832,-500.0,0.00019452,2]
[314836370,1708582246842,-153.5900403,0.000195,2]
[314836371,1708582246852,-153.0,0.000195,2]
[314836372,1708582246861,-153.0,0.000195,2]
[314836373,1708582246870,-161.938065,0.000195,2]
[314836374,1708582246879,-153.0,0.000195,2]
[314836375,1708582246888,-400.5488803,0.000195,2]
[314836376,1708582246897,-300.0,0.00019544,2]
[314836377,1708582246906,-500.0,0.0001959,2]
[314836378,1708582246915,-153.0,0.000196,2]
[314836379,1708582246924,-153.0,0.000196,2]
[314836380,1708582246933,-153.0,0.000196,2]
[314836381,1708582246943,-273.3015673,0.000196,2]
[314836382,1708582246952,-166.666666,0.00019627,2]
[314836383,1708582246962,-516.99625965,0.00019689,2]
[314836384,1708582246971,-500.0,0.00019689,2]
[314836385,1708582246980,-500.0,0.00019689,2]
[314836387,1708582246990,-151.0,0.00019689,2]
[314836389,1708582247001,-500.0,0.00019689,2]
[314836391,1708582247010,-500.91301626,0.00019689,2]
[314836393,1708582247021,-500.0,0.00019689,2]
[314836395,1708582247031,-565.43581869,0.00019689,2]
[314836397,1708582247041,-500.0,0.00019689,2]
[314836399,1708582247052,-500.0,0.00019689,2]
[314836401,1708582247062,-500.0,0.00019689,2]
[314836403,1708582247071,-874.56,0.00019689,2]
[314836405,1708582247081,-500.0,0.00019689,2]
[314836407,1708582247092,-500.0,0.00019689,2]
[314836409,1708582247102,-500.0,0.00019689,2]
[314836411,1708582247111,-500.0,0.00019689,2]
[314836413,1708582247121,-500.0,0.00019689,2]
[314836415,1708582247130,-500.0,0.00019689,2]
[314836417,1708582247140,-500.0,0.00019689,2]
[314836419,1708582247150,-500.0,0.00019689,2]
[314836421,1708582247159,-500.0,0.00019689,2]
[314836423,1708582247168,-500.0,0.00019689,2]
[314836425,1708582247177,-500.0,0.00019689,2]
[314836427,1708582247187,-501.96455981,0.00019689,2]
[314836429,1708582247197,-244.70642441,0.00019689,2]
[314836431,1708582247206,-500.0,0.00019689,2]
[314836433,1708582247215,-500.0,0.00019689,2]
[314836435,1708582247225,-694.38,0.00019689,2]
[314836437,1708582247234,-500.0,0.00019689,2]
[314836439,1708582247244,-500.0,0.00019689,2]
[314836441,1708582247253,-500.0,0.00019689,2]
[314836442,1708582247262,-501.00743122,0.00019689,2]
[314836444,1708582247272,-500.0,0.00019689,2]
[314836447,1708582247282,-500.0,0.00019689,2]
[314836448,1708582247291,-500.0,0.00019689,2]
[314836450,1708582247301,-982.49,0.00019689,2]
[314836452,1708582247312,-500.0,0.00019689,2]
[314836454,1708582247323,-500.0,0.00019689,2]
[314836456,1708582247332,-500.0,0.00019689,2]
[314836458,1708582247346,-1935.84,0.00019689,2]
[314836460,1708582247357,-552.91,0.00019689,2]
[314836463,1708582247368,-762.55,0.00019689,2]
[314836464,1708582247378,-500.0,0.00019689,2]
[314836466,1708582247388,-500.89136528,0.00019689,2]
[314836468,1708582247398,-501.06334782,0.00019689,2]
[314836470,1708582247408,-500.0,0.00019689,2]
[314836473,1708582247418,-500.66481967,0.00019689,2]
[314836475,1708582247428,-1954.43,0.00019689,2]
[314836476,1708582247438,-500.0,0.00019689,2]
[314836479,1708582247449,-500.92597094,0.00019689,2]
[314836480,1708582247459,-500.0,0.00019689,2]
[314836482,1708582247468,-500.0,0.00019689,2]
[314836484,1708582247478,-208.61931381,0.00019689,2]
[314836486,1708582247487,-500.0,0.00019689,2]
[314836488,1708582247497,-501.16944627,0.00019689,2]
[314836490,1708582247506,-500.0,0.00019689,2]
[314836492,1708582247515,-500.0,0.00019689,2]
[314836494,1708582247525,-500.0,0.00019689,2]
[314836496,1708582247534,-500.81,0.00019689,2]
[314836498,1708582247543,-500.63179742,0.00019689,2]
[314836500,1708582247554,-500.0,0.00019689,2]
[314836502,1708582247563,-500.0,0.00019689,2]
[314836504,1708582247572,-500.0,0.00019689,2]
[314836506,1708582247585,-500.49222715,0.00019689,2]
[314836508,1708582247597,-500.73843133,0.00019689,2]
[314836510,1708582247606,-500.91888592,0.00019689,2]
[314836512,1708582247616,-500.95594978,0.00019689,2]
[314836514,1708582247625,-501.12869748,0.00019689,2]
[314836516,1708582247634,-500.90707381,0.00019689,2]
[314836518,1708582247643,-502.0598318,0.00019689,2]
[314836520,1708582247652,-500.0,0.00019689,2]
[314836522,1708582247662,-500.0,0.00019689,2]
[314836524,1708582247671,-500.0,0.00019689,2]
[314836526,1708582247680,-500.0,0.00019689,2]
[314836528,1708582247688,-500.55055743,0.00019689,2]
[314836530,1708582247698,-500.0,0.00019689,2]
[314836541,1708582247788,-500.0,0.00019689,2]
[314836543,1708582247798,-500.0,0.00019689,2]
[314836545,1708582247807,-500.8826109,0.00019689,2]
[314836546,1708582247816,-500.6325217,0.00019689,2]
[314836548,1708582247825,-500.0,0.00019689,2]
[314836550,1708582247839,-628.08924389,0.00019689,2]
[314836552,1708582247849,-5500.24,0.00019689,2]
[314836554,1708582247859,-500.0,0.00019689,2]
[314836556,1708582247870,-2578.39,0.00019689,2]
[314836558,1708582247879,-500.0,0.00019689,2]
[314836561,1708582247889,-1685.62,0.00019689,2]
[314836562,1708582247898,-980.47,0.00019689,2]
[314836564,1708582247909,-500.0,0.00019689,2]
[314836566,1708582247918,-500.0,0.00019689,2]
[314836568,1708582247927,-906.72,0.00019689,2]
[314836571,1708582247937,-500.0,0.00019689,2]
[314836573,1708582247946,-500.0,0.0001969,2]
[314836575,1708582247956,-500.0,0.0001969,2]
[314836576,1708582247967,-500.0,0.0001969,2]
[314836578,1708582247976,-501.06312451,0.0001969,2]
[314836580,1708582247985,-500.0,0.0001969,2]
[314836582,1708582247995,-500.0,0.0001969,2]
[314836584,1708582248004,-500.0,0.0001969,2]
[314836586,1708582248013,-500.0,0.0001969,2]
[314836588,1708582248023,-500.0,0.0001969,2]
[314836590,1708582248032,-500.0,0.0001969,2]
[314836592,1708582248041,-500.0,0.00019691,2]
[314836594,1708582248050,-153.0,0.000197,2]
[314836596,1708582248059,-251.7885844,0.000197,2]
[314836598,1708582248068,-300.0,0.00019725,2]
[314836600,1708582248078,-500.0,0.00019726,2]
[314836602,1708582248088,-3714.86,0.00019726,2]
[314836604,1708582248098,-1609.72,0.00019726,2]
[314836606,1708582248107,-534.13,0.00019726,2]
[314836608,1708582248117,-500.0,0.00019726,2]
[314836610,1708582248126,-500.0,0.00019726,2]
[314836612,1708582248135,-551.96562463,0.00019726,2]
[314836614,1708582248145,-540.74,0.00019726,2]
[314836616,1708582248155,-500.0,0.00019726,2]
[314836618,1708582248164,-663.39,0.00019726,2]
[314836620,1708582248173,-617.93,0.00019726,2]
[314836622,1708582248183,-3409.91,0.00019726,2]
[314836624,1708582248192,-500.92520509,0.00019726,2]
[314836626,1708582248201,-3062.0,0.00019726,2]
[314836628,1708582248210,-159.48453292,0.00019726,2]
[314836630,1708582248219,-1754.11,0.00019726,2]
[314836632,1708582248228,-500.0,0.00019726,2]
[314836634,1708582248237,-500.0,0.00019726,2]
[314836636,1708582248246,-500.0,0.00019726,2]
[314836638,1708582248255,-556.07,0.00019726,2]
[314836640,1708582248265,-500.0,0.00019726,2]
[314836642,1708582248274,-755.2,0.00019726,2]
[314836644,1708582248283,-500.0,0.00019726,2]
[314836646,1708582248292,-5300.81,0.00019726,2]
[314836648,1708582248301,-2582.01,0.00019726,2]
[314836650,1708582248311,-501.62181897,0.00019726,2]
[314836652,1708582248320,-500.0,0.00019726,2]
[314836654,1708582248330,-501.84072468,0.00019726,2]
[314836656,1708582248339,-1023.65,0.00019726,2]
[314836658,1708582248348,-5543.29,0.00019726,2]
[314836660,1708582248357,-500.0,0.00019726,2]
[314836662,1708582248366,-500.0,0.00019726,2]
[314836664,1708582248375,-500.0,0.00019726,2]
[314836666,1708582248384,-500.0,0.00019726,2]
[314836668,1708582248394,-1686.18,0.00019726,2]
[314836670,1708582248403,-501.4774535,0.00019726,2]
[314836672,1708582248412,-500.0,0.00019726,2]
[314836674,1708582248422,-500.0,0.00019726,2]
[314836676,1708582248431,-500.0,0.00019726,2]
[314836678,1708582248440,-2359.07,0.00019726,2]
[314836680,1708582248449,-500.0,0.00019726,2]
[314836682,1708582248459,-500.0,0.00019726,2]
[314836684,1708582248469,-300.0,0.00019907,2]
[314836686,1708582248478,-9602.00808167,0.00019917,2]
[314836688,1708582248487,-6747.84438553,0.00019917,2]
[314836690,1708582248496,-6747.84438553,0.00019917,2]
[314836692,1708582248505,-6747.84438553,0.00019917,2]
[314836694,1708582248515,-6747.84438553,0.00019917,2]
[314836696,1708582248524,-6747.84438553,0.00019917,2]
[314836698,1708582248532,-6747.84438553,0.00019917,2]
[314836700,1708582248542,-6747.84438553,0.00019917,2]
[314836702,1708582248551,-6747.84438553,0.00019917,2]
[314836704,1708582248560,-6747.84438553,0.00019917,2]
[314836706,1708582248569,-6747.84338553,0.00019917,2]
[314836707,1708582248578,-500.0,0.00019943,2]
[314836709,1708582248587,-500.0,0.00019943,2]
[314836711,1708582248597,-500.0,0.00019943,2]
[314836713,1708582248606,-500.0,0.00019943,2]
[314836715,1708582248616,-500.0,0.00019943,2]
[314836717,1708582248625,-500.0,0.00019943,2]
[314836719,1708582248634,-414.76268041,0.00019943,2]
[314836721,1708582248643,-500.0,0.00019963,2]
[314836723,1708582248652,-151.48714558,0.00019963,2]
[314836725,1708582248662,-500.0,0.00019963,2]
[314836727,1708582248671,-500.0,0.00019963,2]
[314836729,1708582248680,-501.29036185,0.00019963,2]
[314836731,1708582248691,-500.0,0.00019963,2]
[314836733,1708582248700,-874.56,0.00019963,2]
[314836735,1708582248709,-501.55001584,0.00019963,2]
[314836737,1708582248719,-501.05859456,0.00019963,2]
[314836739,1708582248728,-205.67442968,0.00019963,2]
[314836741,1708582248737,-500.0,0.00019963,2]
[314836743,1708582248746,-500.0,0.00019963,2]
[314836745,1708582248755,-500.0,0.00019963,2]
[314836747,1708582248765,-500.0,0.00019963,2]
[314836749,1708582248774,-500.0,0.00019963,2]
[314836751,1708582248783,-694.38,0.00019963,2]
[314836753,1708582248792,-500.0,0.00019963,2]
[314836755,1708582248802,-512.58,0.00019963,2]
[314836757,1708582248811,-501.87141753,0.00019963,2]
[314836759,1708582248820,-982.49,0.00019963,2]
[314836761,1708582248830,-500.0,0.00019963,2]
[314836763,1708582248840,-501.64511843,0.00019963,2]
[314836765,1708582248850,-500.77206725,0.00019963,2]
[314836767,1708582248860,-1935.84,0.00019963,2]
[314836769,1708582248870,-552.91,0.00019963,2]
[314836771,1708582248879,-762.55,0.00019963,2]
[314836773,1708582248888,-500.0,0.00019963,2]
[314836775,1708582248897,-504.2479257,0.00019963,2]
[314836777,1708582248906,-1954.43,0.00019963,2]
[314836779,1708582248915,-501.18946826,0.00019963,2]
[314836781,1708582248925,-501.25023183,0.00019963,2]
[314836783,1708582248934,-500.0,0.00019963,2]
[314836784,1708582248943,-500.0,0.00019963,2]
[314836786,1708582248952,-593.41,0.00019963,2]
[314836788,1708582248961,-500.81,0.00019963,2]
[314836790,1708582248970,-500.0,0.00019963,2]
[314836792,1708582248979,-500.0,0.00019963,2]
[314836794,1708582248988,-500.0,0.00019963,2]
[314836796,1708582248997,-500.98655187,0.00019963,2]
[314836799,1708582249008,-500.0,0.00019963,2]
[314836800,1708582249017,-500.0,0.00019963,2]
[314836802,1708582249026,-500.0,0.00019963,2]
[314836804,1708582249035,-501.1158348,0.00019963,2]
[314836806,1708582249044,-5500.24,0.00019963,2]
[314836808,1708582249054,-500.0,0.00019963,2]
[314836810,1708582249063,-2578.39,0.00019963,2]
[314836812,1708582249073,-500.0,0.00019963,2]
[314836814,1708582249082,-1685.62,0.00019963,2]
[314836816,1708582249093,-980.47,0.00019963,2]
[314836818,1708582249102,-500.0,0.00019963,2]
[314836820,1708582249111,-500.0,0.00019963,2]
[314836822,1708582249120,-906.72,0.00019963,2]
[314836824,1708582249129,-500.0,0.00019963,2]
[314836826,1708582249138,-500.0,0.00019964,2]
[314836828,1708582249147,-500.0,0.00019964,2]
[314836830,1708582249157,-500.0,0.00019964,2]
[314836832,1708582249167,-500.0,0.00019964,2]
[314836834,1708582249175,-500.0,0.00019964,2]
[314836836,1708582249184,-500.0,0.00019964,2]
[314836838,1708582249193,-500.0,0.00019964,2]
[314836840,1708582249203,-500.0,0.00019964,2]
[314836842,1708582249212,-17259.81116852,0.0002,7]
[314836852,1708582249350,-329.7518327,0.0002,7]
[314836878,1708582249673,-153.0,0.000194,2]
[314836880,1708582249682,-8126.05674112,0.0002,7]
[314836884,1708582249713,-56.78682755,0.0002,7]
[314840264,1708583432643,-295.32512171,0.00019057,2]
[314840265,1708583432656,-150.10176802,0.00019058,2]
[314840401,1708583439534,-381.63402029,0.00019058,2]
[314840402,1708583439544,-719.08152352,0.00019175,2]
[314840404,1708583439554,-248.53773678,0.00019176,2]
[314840406,1708583439563,-646.68415316,0.00019177,2]
[314840408,1708583439575,-39.15315362,0.00019177,2]
[314840410,1708583439584,-500.0,0.00019178,2]
[314840412,1708583439594,-353.52125509,0.00019178,2]
[314840413,1708583439607,-146.47874491,0.00019178,2]
[314840415,1708583439616,-500.0,0.00019178,2]
[314840417,1708583439625,-500.0,0.00019178,2]
[314840418,1708583439634,-501.64511843,0.00019178,2]
[314840419,1708583439643,-500.0,0.00019178,2]
[314840420,1708583439653,-208.61931381,0.00019178,2]
[314840421,1708583439663,-500.66481967,0.00019178,2]
[314840422,1708583439673,-501.06334782,0.00019178,2]
[314840423,1708583439682,-500.0,0.00019178,2]
[314840424,1708583439692,-500.0,0.00019178,2]
[314840425,1708583439701,-500.73843133,0.00019178,2]
[314840426,1708583439711,-500.0,0.00019178,2]
[314840427,1708583439720,-500.0,0.00019178,2]
[314840428,1708583439729,-500.0,0.00019178,2]
[314840429,1708583439738,-500.0,0.00019178,2]
[314840430,1708583439748,-500.6498684,0.00019178,2]
[314840431,1708583439759,-500.0,0.00019178,2]
[314840432,1708583439769,-500.0,0.00019178,2]
[314840433,1708583439778,-500.0,0.00019178,2]
[314840434,1708583439788,-501.03228653,0.00019178,2]
[314840435,1708583439797,-500.0,0.00019178,2]
[314840436,1708583439806,-500.95594978,0.00019178,2]
[314840437,1708583439815,-574.4898296,0.00019178,2]
[314840438,1708583439824,-500.87700297,0.00019178,2]
[314840439,1708583439833,-500.90707381,0.00019178,2]
[314840440,1708583439842,-500.0,0.00019178,2]
[314840441,1708583439851,-500.0,0.00019178,2]
[314840442,1708583439860,-500.0,0.00019178,2]
[314840443,1708583439869,-500.0,0.00019178,2]
[314840444,1708583439879,-500.57702659,0.00019178,2]
[314840445,1708583439888,-962.39,0.00019178,2]
[314840446,1708583439899,-501.85083767,0.00019178,2]
[314840447,1708583439909,-500.0,0.00019178,2]
[314840448,1708583439919,-500.0,0.00019178,2]
[314840449,1708583439928,-583.07,0.00019178,2]
[314840450,1708583439938,-500.0,0.00019178,2]
[314840451,1708583439947,-500.0,0.00019178,2]
[314840452,1708583439957,-500.0,0.00019178,2]
[314840453,1708583439966,-500.0,0.00019178,2]
[314840454,1708583439976,-500.0,0.00019178,2]
[314840455,1708583439985,-511.88,0.00019178,2]
[314840456,1708583439994,-258.37608365,0.00019178,2]
[314840457,1708583440003,-529.87,0.00019178,2]
[314840458,1708583440013,-500.0,0.00019178,2]
[314840459,1708583440113,-501.76410388,0.00019178,2]
[314840460,1708583440149,-628.08924389,0.00019178,2]
[314840461,1708583440160,-500.89136528,0.00019178,2]
[314840462,1708583440169,-472.39151301,0.00019178,2]
[314840463,1708583440178,-500.0,0.00019178,2]
[314840464,1708583440188,-500.0,0.00019178,2]
[314840465,1708583440198,-500.74119297,0.00019178,2]
[314840466,1708583440207,-502.29003293,0.00019178,2]
[314840467,1708583440216,-500.0,0.00019178,2]
[314840468,1708583440226,-1855.18,0.00019178,2]
[314840469,1708583440235,-500.92597094,0.00019178,2]
[314840470,1708583440244,-500.0,0.00019178,2]
[314840471,1708583440254,-501.38307201,0.00019178,2]
[314840472,1708583440263,-500.0,0.00019178,2]
[314840473,1708583440272,-500.0,0.00019178,2]
[314840474,1708583440282,-500.0,0.00019178,2]
[314840475,1708583440291,-762.55,0.00019178,2]
[314840476,1708583440301,-500.0,0.00019178,2]
[314840477,1708583440310,-500.0,0.00019178,2]
[314840478,1708583440320,-1954.43,0.00019178,2]
[314840479,1708583440330,-501.14766881,0.00019178,2]
[314840480,1708583440339,-500.0,0.00019178,2]
[314840481,1708583440348,-500.95156655,0.00019178,2]
[314840482,1708583440358,-500.0,0.00019178,2]
[314840483,1708583440367,-500.0,0.00019178,2]
[314840484,1708583440376,-500.0,0.00019178,2]
[314840485,1708583440385,-500.0,0.00019178,2]
[314840486,1708583440395,-500.0,0.00019178,2]
[314840487,1708583440405,-500.0,0.00019178,2]
[314840488,1708583440414,-500.54740752,0.00019178,2]
[314840489,1708583440424,-500.0,0.00019178,2]
[314840490,1708583440434,-500.0,0.00019178,2]
[314840491,1708583440443,-501.10060873,0.00019178,2]
[314840492,1708583440452,-501.65035922,0.00019178,2]
[314840493,1708583440462,-500.0,0.00019178,2]
[314840494,1708583440471,-468.42144832,0.00019178,2]
[314840495,1708583440480,-501.04135169,0.00019178,2]
[314840496,1708583440489,-500.0,0.00019178,2]
[314840497,1708583440498,-500.0,0.00019178,2]
[314840498,1708583440509,-3714.86,0.00019178,2]
[314840499,1708583440518,-500.0,0.00019178,2]
[314840500,1708583440528,-500.0,0.00019178,2]
[314840501,1708583440537,-500.0,0.00019178,2]
[314840502,1708583440546,-500.0,0.00019178,2]
[314840503,1708583440555,-500.0,0.00019178,2]
[314840504,1708583440564,-500.19416495,0.00019178,2]
[314840505,1708583440573,-500.0,0.00019178,2]
[314840506,1708583440583,-906.72,0.00019178,2]
[314840507,1708583440592,-500.0,0.00019178,2]
[314840508,1708583440601,-500.71887164,0.00019178,2]
[314840509,1708583440610,-1542.65,0.00019178,2]
[314840510,1708583440619,-500.0,0.00019178,2]
[314840511,1708583440629,-500.0,0.00019178,2]
[314840512,1708583440638,-501.34025115,0.00019178,2]
[314840513,1708583440648,-501.22218744,0.00019178,2]
[314840514,1708583440657,-500.33823057,0.00019178,2]
[314840515,1708583440666,-500.0,0.00019178,2]
[314840516,1708583440675,-500.0,0.00019178,2]
[314840517,1708583440684,-500.0,0.00019178,2]
[314840518,1708583440694,-500.41724216,0.00019178,2]
[314840519,1708583440703,-500.0,0.00019178,2]
[314840520,1708583440712,-447.57727191,0.00019178,2]
[314840521,1708583440721,-500.0,0.00019178,2]
[314840522,1708583440730,-500.0,0.00019178,2]
[314840523,1708583440739,-501.68374583,0.00019178,2]
[314840524,1708583440748,-285.47079158,0.00019178,2]
[314840525,1708583440757,-387.37101494,0.00019178,2]
[314840526,1708583440766,-500.0,0.00019178,2]
[314840527,1708583440775,-500.0,0.00019178,2]
[314840528,1708583440785,-500.94649649,0.00019178,2]
[314840529,1708583440794,-500.0,0.00019178,2]
[314840530,1708583440802,-151.0,0.00019178,2]
[314840531,1708583440811,-500.0,0.00019178,2]
[314840532,1708583440820,-500.0,0.00019178,2]
[314840533,1708583440829,-500.0,0.00019178,2]
[314840534,1708583440838,-501.01262498,0.00019178,2]
[314840535,1708583440848,-612.89728722,0.00019178,2]
[314840536,1708583440857,-500.0,0.00019178,2]
[314840537,1708583440866,-500.0,0.00019178,2]
[314840538,1708583440875,-516.80025721,0.00019178,2]
[314840539,1708583440884,-500.0,0.00019178,2]
[314840540,1708583440893,-503.18764273,0.00019178,2]
[314840541,1708583440902,-500.42229525,0.00019178,2]
[314840542,1708583440911,-500.0,0.00019178,2]
[314840543,1708583440920,-547.86795741,0.00019178,2]
[314840544,1708583440929,-500.32836725,0.00019178,2]
[314840545,1708583440938,-500.96626582,0.00019178,2]
[314840546,1708583440946,-501.28239679,0.00019178,2]
[314840547,1708583440955,-500.0,0.00019178,2]
[314840548,1708583440965,-500.0,0.00019178,2]
[314840549,1708583440974,-511.82576772,0.00019178,2]
[314840550,1708583440983,-500.0,0.00019178,2]
[314840551,1708583440993,-511.59491507,0.00019178,2]
[314840552,1708583441002,-500.0,0.00019178,2]
[314840553,1708583441011,-500.0,0.00019178,2]
[314840554,1708583441019,-1685.62,0.00019178,2]
[314840555,1708583441029,-500.0,0.00019178,2]
[314840556,1708583441038,-500.0,0.00019178,2]
[314840557,1708583441050,-340.47543705,0.00019178,2]
[314840558,1708583441059,-501.64582381,0.00019178,2]
[314840559,1708583441070,-500.28325771,0.00019178,2]
[314840560,1708583441081,-500.0,0.00019178,2]
[314840561,1708583441092,-501.06102034,0.00019178,2]
[314840562,1708583441101,-246.8972491,0.00019178,2]
[314840563,1708583441111,-500.0,0.00019178,2]
[314840564,1708583441120,-635.75,0.00019178,2]
[314840565,1708583441130,-500.0,0.00019178,2]
[314840566,1708583441140,-500.0,0.00019178,2]
[314840567,1708583441150,-500.0,0.00019178,2]
[314840568,1708583441159,-500.0,0.00019178,2]
[314840569,1708583441169,-500.0,0.00019178,2]
[314840570,1708583441179,-501.9076383,0.00019178,2]
[314840571,1708583441192,-254.66965508,0.00019178,2]
[314840572,1708583441202,-3267.83,0.00019178,2]
[314840573,1708583441211,-500.67376292,0.00019178,2]
[314840574,1708583441221,-500.0,0.00019178,2]
[314840575,1708583441231,-2934.41,0.00019178,2]
[314840576,1708583441240,-501.47119828,0.00019178,2]
[314840577,1708583441250,-331.2182279,0.00019178,2]
[314840578,1708583441259,-500.4543394,0.00019178,2]
[314840579,1708583441270,-1000.0,0.00019178,2]
[314840580,1708583441280,-500.0,0.00019178,2]
[314840581,1708583441289,-518.21,0.00019178,2]
[314840582,1708583441298,-500.0,0.00019178,2]
[314840583,1708583441307,-1681.02,0.00019178,2]
[314840584,1708583441316,-500.0,0.00019178,2]
[314840585,1708583441325,-500.0,0.00019178,2]
[314840586,1708583441335,-500.74571166,0.00019178,2]
[314840587,1708583441344,-500.73588962,0.00019178,2]
[314840588,1708583441353,-500.39154709,0.00019178,2]
[314840589,1708583441362,-500.0,0.00019178,2]
[314840590,1708583441371,-500.0,0.00019178,2]
[314840591,1708583441381,-500.0,0.00019178,2]
[314840592,1708583441391,-618.90810013,0.00019178,2]
[314840593,1708583441401,-500.0,0.00019178,2]
[314840594,1708583441409,-500.0,0.00019178,2]
[314840595,1708583441419,-500.0,0.00019178,2]
[314840596,1708583441428,-501.14513098,0.00019178,2]
[314840597,1708583441437,-500.0,0.00019178,2]
[314840599,1708583441446,-500.0,0.00019178,2]
[314840600,1708583441457,-500.0,0.00019178,2]
[314840601,1708583441466,-500.0,0.00019178,2]
[314840602,1708583441475,-500.0,0.00019178,2]
[314840603,1708583441486,-628.59224466,0.00019178,2]
[314840604,1708583441496,-2474.42,0.00019178,2]
[314840605,1708583441506,-501.25551436,0.00019178,2]
[314840606,1708583441515,-500.0,0.00019178,2]
[314840608,1708583441524,-500.0,0.00019178,2]
[314840609,1708583441533,-500.0,0.00019178,2]
[314840610,1708583441542,-500.93694212,0.00019178,2]
[314840611,1708583441551,-500.0,0.00019178,2]
[314840612,1708583441560,-500.0,0.00019178,2]
[314840613,1708583441569,-187.64968573,0.00019178,2]
[314840615,1708583441578,-500.0,0.00019178,2]
[314840616,1708583441587,-1023.65,0.00019178,2]
[314840617,1708583441596,-500.0,0.00019178,2]
[314840618,1708583441605,-500.0,0.00019178,2]
[314840619,1708583441614,-500.0,0.00019178,2]
[314840620,1708583441623,-509.90791118,0.00019178,2]
[314840622,1708583441632,-213.92388757,0.00019178,2]
[314840623,1708583441641,-500.0,0.00019178,2]
[314840624,1708583441650,-600.41345026,0.00019178,2]
[314840625,1708583441659,-500.0,0.00019178,2]
[314840626,1708583441668,-583.32557711,0.00019178,2]
[314840627,1708583441677,-500.0,0.00019178,2]
[314840628,1708583441686,-500.0,0.00019178,2]
[314840629,1708583441697,-500.0,0.00019178,2]
[314840630,1708583441707,-500.0,0.00019178,2]
[314840631,1708583441716,-440.55933183,0.00019178,2]
[314840632,1708583441726,-498.27863006,0.00019178,2]
[314840633,1708583441736,-500.0,0.00019178,2]
[314840634,1708583441745,-500.0,0.00019178,2]
[314840635,1708583441754,-500.0,0.00019178,2]
[314840636,1708583441764,-500.0,0.00019178,2]
[314840637,1708583441774,-723.73,0.00019178,2]
[314840638,1708583441783,-561.99452461,0.00019178,2]
[314840639,1708583441792,-500.0,0.00019178,2]
[314840640,1708583441802,-500.54892052,0.00019178,2]
[314840641,1708583441811,-5543.29,0.00019178,2]
[314840642,1708583441821,-500.0,0.00019178,2]
[314840643,1708583441830,-500.0,0.00019178,2]
[314840644,1708583441839,-500.0,0.00019178,2]
[314840645,1708583441848,-500.28548922,0.00019178,2]
[314840646,1708583441857,-500.20516533,0.00019178,2]
[314840647,1708583441866,-587.10061752,0.00019178,2]